bitfinex-derivatives/quotes_SOLF0:USTF0_20240920
["timestamp","ask_amount","ask_price","bid_price","bid_amount"]
[1726829110037,1.394,151.51,151.44,3.301]
[1726829110642,15.83,151.5,151.43,3.3013]
[1726829111037,3.3011,151.44,151.41,15.83]
[1726829111340,15.83,151.5,151.41,15.83]
[1726829111742,15.83,151.5,151.42,3.3014]
[1726829112239,15.83,151.5,151.43,3.3012]
[1726829112641,15.83,151.5,151.41,15.83]
[1726829112838,3.3004,151.48,151.41,15.83]
[1726829113034,1.394,151.51,151.45,15.83]
[1726829113239,1.2934,151.52,151.45,15.83]
[1726829113541,3.2998,151.5,151.47,3.3003]
[1726829113741,1.3102,151.53,151.46,3.27874714]
[1726829113942,3.2995,151.52,151.48,3.3001]
[1726829114137,1.3102,151.53,151.48,3.3001]
[1726829114537,1.3102,151.53,151.47,15.83]
[1726829115142,4.6095,151.53,151.5,3.2998]
[1726829115539,1.3102,151.53,151.45,3.2932724]
[1726829115741,3.2997,151.51,151.47,3.3003]
[1726829116139,3.2997,151.51,151.45,3.2932724]
[1726829116535,3.2994,151.52,151.48,3.3001]
[1726829116939,3.2994,151.52,151.45,3.2932724]
[1726829117141,3.2994,151.52,151.46,15.83]
[1726829117639,4.6095,151.53,151.46,19.07067953]
[1726829118035,4.6095,151.53,151.49,3.2998]
[1726829118241,4.6095,151.53,151.46,19.07067953]
[1726829119140,3.2996,151.52,151.48,3.3002]
[1726829119551,3.2996,151.52,151.46,19.07067953]
[1726829119744,3.2996,151.52,151.49,3.2999]
[1726829120448,1.3665,151.57,151.49,15.83]
[1726829120449,17.1965,151.57,151.49,15.83]
[1726829120648,18.5127,151.57,151.49,15.83]
[1726829120849,3.299,151.54,151.51,3.2994]
[1726829121340,3.2993,151.53,151.49,3.2999]
[1726829121538,15.83,151.55,151.47,15.83]
[1726829121747,15.83,151.55,151.46,3.24067953]
[1726829121950,3.2995,151.52,151.46,3.24067953]
[1726829122546,3.2991,151.54,151.48,15.83]
[1726829122946,3.2987,151.55,151.48,15.83]
[1726829123349,2.6827,151.57,151.5,15.83]
[1726829123649,3.2986,151.56,151.5,15.83]
[1726829124649,1.3162,151.57,151.48,15.83]
[1726829125052,3.299,151.54,151.5,3.2996]
[1726829125353,3.299,151.54,151.48,15.83]
[1726829125546,15.83,151.56,151.48,15.83]
[1726829125852,15.83,151.56,151.46,26.2462293]
[1726829126146,15.83,151.56,151.47,6.51072299]
[1726829126345,15.83,151.56,151.48,6.51378011]
[1726829126546,15.83,151.56,151.46,15.83]
[1726829126747,15.83,151.56,151.47,6.51384142]
[1726829127049,3.2992,151.53,151.5,3.2998]
[1726829127247,1.3162,151.57,151.46,15.83]
[1726829127452,1.3162,151.57,151.47,6.516357]
[1726829127647,1.3162,151.57,151.45,4.60164753]
[1726829127851,3.3001,151.49,151.46,9.81792875]
[1726829128154,15.83,151.52,151.46,3.3005]
[1726829128550,3.3001,151.49,151.46,3.3005]
[1726829129054,3.3002,151.48,151.46,3.3005]
[1726829129257,15.83,151.54,151.45,1.278]
[1726829129655,3.2996,151.51,151.45,1.278]
[1726829129956,3.2996,151.51,151.48,3.3001]
[1726829130553,15.83,151.54,151.45,1.278]
[1726829130955,15.83,151.54,151.47,3.3003]
[1726829131146,15.83,151.54,151.45,1.278]
[1726829131346,15.83,151.54,151.46,6.52496554]
[1726829131551,3.2996,151.51,151.48,3.3001]
[1726829133757,3.2996,151.51,151.45,1.278]
[1726829133956,3.2996,151.51,151.46,6.52621897]
[1726829134154,3.2996,151.51,151.48,3.3001]
[1726829134356,3.2996,151.51,151.45,1.278]
[1726829134660,3.2996,151.51,151.46,6.52638538]
[1726829134847,3.2995,151.52,151.45,1.278]
[1726829135046,15.83,151.54,151.46,22.35630655]
[1726829135253,15.83,151.54,151.5,3.2998]
[1726829135452,3.2991,151.54,151.5,3.2998]
[1726829135857,15.83,151.56,151.5,3.2998]
[1726829136159,15.83,151.56,151.46,15.83]
[1726829136358,15.83,151.56,151.48,15.83]
[1726829136554,3.299,151.54,151.48,15.83]
[1726829136859,3.299,151.54,151.51,3.2994]
[1726829137252,1.3162,151.57,151.52,3.2993]
[1726829137455,1.3162,151.57,151.5,15.83]
[1726829137860,3.2987,151.55,151.52,3.2992]
[1726829138357,15.83,151.63,151.54,15.83]
[1726829138556,19.7918,151.63,151.54,15.83]
[1726829138747,3.298,151.59,151.54,15.83]
[1726829138952,3.298,151.59,151.56,3.2985]
[1726829139352,3.2981,151.58,151.56,3.2985]
[1726829139852,3.2981,151.58,151.55,3.2986]
[1726829140859,15.83,151.61,151.54,3.2988]
[1726829141161,15.83,151.61,151.5,15.83]
[1726829141352,15.83,151.59,151.52,3.2993]
[1726829141757,15.83,151.59,151.51,3.2995]
[1726829141959,15.83,151.57,151.51,3.2995]
[1726829142258,1.3595,151.56,151.51,3.2995]
[1726829142460,3.299,151.54,151.51,3.2995]
[1726829142858,1.3595,151.56,151.51,3.2995]
[1726829143056,3.2991,151.54,151.51,3.2995]
[1726829143657,3.2992,151.53,151.51,3.2995]
[1726829143859,1.3595,151.56,151.48,15.83]
[1726829144159,3.2988,151.55,151.49,6.52486681]
[1726829144361,3.2988,151.55,151.5,6.52486681]
[1726829144557,3.2988,151.55,151.52,3.2992]
[1726829145062,3.2989,151.54,151.51,3.2995]
[1726829145264,1.3595,151.56,151.51,3.2995]
[1726829146065,3.299,151.54,151.51,3.2995]
[1726829147758,3.2988,151.55,151.52,3.2992]
[1726829147964,1.3595,151.56,151.49,6.52232222]
[1726829148165,1.3595,151.56,151.5,15.83]
[1726829148365,4.6581,151.56,151.53,3.299]
[1726829149065,3.2987,151.55,151.53,3.299]
[1726829150366,1.3595,151.56,151.5,15.83]
[1726829150968,3.2988,151.55,151.5,15.83]
[1726829151370,1.3595,151.56,151.5,15.83]
[1726829151569,4.6581,151.56,151.53,3.2991]
[1726829151771,15.83,151.61,151.52,3.36258564]
[1726829151967,17.1075,151.61,151.53,15.83]
[1726829152169,3.2979,151.59,151.56,3.2984]
[1726829154964,3.2981,151.58,151.55,3.2986]
[1726829155268,17.1075,151.61,151.52,3.26954131]
[1726829155473,15.83,151.59,151.54,3.2989]
[1726829156065,3.2984,151.57,151.54,3.2989]
[1726829157075,3.2986,151.56,151.53,3.299]
[1726829157570,15.83,151.59,151.53,3.2991]
[1726829157770,15.83,151.59,151.48,15.83]
[1726829157974,15.83,151.56,151.48,15.83]
[1726829159168,1.3885,151.55,151.48,15.83]
[1726829160176,3.299,151.54,151.51,3.2994]
[1726829160876,17.2185,151.55,151.46,17.0954]
[1726829161276,17.2185,151.55,151.48,3.3002]
[1726829161475,17.2185,151.55,151.46,17.0954]
[1726829161780,3.2996,151.51,151.48,3.3002]
[1726829161976,15.83,151.53,151.46,1.2654]
[1726829162183,15.83,151.54,151.46,1.2654]
[1726829162382,3.2995,151.52,151.49,3.2999]
[1726829162575,15.83,151.54,151.49,3.2999]
[1726829162979,3.2995,151.52,151.49,3.2999]
[1726829163182,15.83,151.54,151.48,3.3002]
[1726829163475,15.83,151.54,151.46,1.2654]
[1726829163677,15.83,151.53,151.46,1.2654]
[1726829164182,15.83,151.53,151.44,19.08522418]
[1726829164584,15.83,151.53,151.44,3.25522418]
[1726829164784,17.2185,151.55,151.46,15.83]
[1726829164984,1.3885,151.55,151.48,15.83]
[1726829165185,1.3885,151.55,151.5,15.83]
[1726829165382,1.3885,151.55,151.52,3.2992]
[1726829165579,1.3885,151.55,151.5,19.05297867]
[1726829165782,1.3885,151.55,151.5,15.83]
[1726829165981,1.3885,151.55,151.52,3.2992]
[1726829168486,1.3885,151.55,151.46,1.3055]
[1726829168684,1.3885,151.55,151.48,15.83]
[1726829169280,3.2991,151.54,151.5,3.2996]
[1726829169584,1.3885,151.55,151.48,15.83]
[1726829169983,3.2992,151.53,151.49,3.2998]
[1726829170583,15.83,151.54,151.46,17.1355]
[1726829170988,3.2997,151.51,151.46,1.3055]
[1726829171188,15.83,151.54,151.46,1.3055]
[1726829171396,15.83,151.52,151.45,132.02]
[1726829171593,3.3004,151.48,151.45,132.02]
[1726829171794,1.3563,151.51,151.45,132.02]
[1726829172092,15.83,151.48,151.41,3.3017]
[1726829172297,1.3547,151.47,151.42,6.53500872]
[1726829172497,1.3547,151.47,151.4,1.2963]
[1726829172693,1.3547,151.47,151.41,3.3017]
[1726829172899,1.3547,151.47,151.4,1.2963]
[1726829173087,1.3547,151.47,151.4,3.3018]
[1726829173088,3.3013,151.44,151.4,3.3018]
[1726829173294,1.3547,151.47,151.4,3.3018]
[1726829173494,15.83,151.46,151.38,15.83]
[1726829173794,3.3014,151.43,151.39,9.84143274]
[1726829173999,3.3014,151.43,151.39,3.302]
[1726829174201,1.3547,151.47,151.4,6.54122015]
[1726829174395,1.3547,151.47,151.4,15.83]
[1726829174600,1.3547,151.47,151.41,6.53930975]
[1726829174898,1.3547,151.47,151.41,3.3015]
[1726829175500,3.3011,151.45,151.41,3.3015]
[1726829176099,3.3007,151.46,151.4,19.12369887]
[1726829176300,3.3007,151.46,151.41,6.5429167]
[1726829176603,3.3007,151.46,151.42,9.8442167]
[1726829176900,3.3007,151.46,151.42,3.3013]
[1726829179506,3.3007,151.46,151.43,6.54129189]
[1726829179695,3.3007,151.46,151.42,3.3013]
[1726829179898,3.3007,151.46,151.43,6.53120022]
[1726829180093,3.3007,151.46,151.42,3.3013]
[1726829180298,1.3547,151.47,151.43,6.53123522]
[1726829180499,1.3547,151.47,151.41,3.3017]
[1726829180704,1.3547,151.47,151.42,6.52951699]
[1726829180901,15.83,151.46,151.41,3.3017]
[1726829181107,15.83,151.46,151.42,6.5294398]
[1726829181305,15.83,151.46,151.41,3.3017]
[1726829181603,15.83,151.46,151.42,6.52916358]
[1726829181804,3.3011,151.44,151.41,3.3017]
[1726829182007,3.3011,151.44,151.42,6.52792004]
[1726829182302,3.3011,151.44,151.41,3.3017]
[1726829182500,3.3011,151.44,151.42,6.52791008]
[1726829182806,15.83,151.46,151.4,3.3019]
[1726829183001,15.83,151.46,151.41,6.52786708]
[1726829183300,15.83,151.46,151.42,6.52786708]
[1726829183506,15.83,151.46,151.36,23.98792374]
[1726829183695,15.83,151.46,151.37,16.96847402]
[1726829183899,15.83,151.46,151.38,16.96847402]
[1726829184095,15.83,151.46,151.39,16.96847402]
[1726829184302,15.83,151.46,151.4,16.96847402]
[1726829184494,15.83,151.46,151.41,6.52633616]
[1726829184700,15.83,151.46,151.36,23.98792374]
[1726829184901,3.3014,151.43,151.4,3.3019]
[1726829185101,3.3014,151.43,151.41,6.52531707]
[1726829185301,15.83,151.46,151.38,15.83]
[1726829185496,3.3011,151.44,151.41,3.3016]
[1726829185697,3.3011,151.44,151.42,6.52425414]
[1726829185907,3.3011,151.44,151.41,3.3016]
[1726829186102,3.301,151.45,151.42,9.82563446]
[1726829186404,1.3547,151.47,151.42,15.83]
[1726829186608,15.83,151.5,151.43,6.52225589]
[1726829186906,1.3563,151.51,151.44,15.83]
[1726829187105,1.3563,151.51,151.45,6.52024616]
[1726829187298,1.3563,151.51,151.45,19.19007563]
[1726829187498,1.3083,151.52,151.45,15.83]
[1726829187707,1.3083,151.52,151.46,6.51814515]
[1726829187904,1.3083,151.52,151.49,3.2999]
[1726829188304,3.2997,151.51,151.48,3.3001]
[1726829189509,1.3083,151.52,151.46,3.23194695]
[1726829189701,17.1748,151.56,151.48,15.83]
[1726829190105,17.1748,151.56,151.49,3.2999]
[1726829190709,3.2995,151.52,151.49,3.2999]
[1726829191111,3.2995,151.52,151.48,3.3001]
[1726829191713,3.2996,151.51,151.48,3.3001]
[1726829191902,15.83,151.54,151.48,3.3001]
[1726829192306,3.2994,151.52,151.48,3.3001]
[1726829192509,15.83,151.54,151.48,3.3001]
[1726829192711,3.2995,151.52,151.48,3.3001]
[1726829193312,15.83,151.54,151.48,3.3001]
[1726829193706,3.2997,151.51,151.48,3.3001]
[1726829193908,15.83,151.54,151.46,15.83]
[1726829194114,15.83,151.52,151.44,19.12669314]
[1726829194320,1.3807,151.51,151.45,6.5203881]
[1726829194507,1.3807,151.51,151.46,6.5203881]
[1726829194813,1.3807,151.51,151.45,3.3007]
[1726829195017,1.3807,151.51,151.46,6.52122377]
[1726829195018,15.83,151.5,151.46,6.52122377]
[1726829195212,15.83,151.5,151.44,3.301]
[1726829195716,3.3006,151.47,151.44,3.301]
[1726829196914,3.3003,151.48,151.45,3.3008]
[1726829197109,17.2028,151.5,151.45,3.3008]
[1726829197419,3.3001,151.49,151.45,3.3008]
[1726829198317,3.3001,151.49,151.46,3.3006]
[1726829198518,3.2999,151.5,151.44,15.83]
[1726829199115,3.3,151.49,151.45,6.5243291]
[1726829199315,3.3,151.49,151.44,15.83]
[1726829199515,3.3,151.49,151.45,6.52392421]
[1726829199717,3.3,151.49,151.45,3.3008]
[1726829199919,3.3,151.49,151.44,15.83]
[1726829200224,3.3,151.49,151.46,3.3006]
[1726829200713,1.3807,151.51,151.43,1.2989]
[1726829200910,17.2107,151.51,151.45,3.3007]
[1726829202318,3.3004,151.48,151.45,3.3007]
[1726829203312,3.3005,151.47,151.44,3.3011]
[1726829203513,3.3005,151.47,151.45,6.52409056]
[1726829203717,3.3005,151.47,151.44,3.3011]
[1726829204122,3.3005,151.47,151.45,3.3009]
[1726829205426,3.3005,151.47,151.44,3.3009]
[1726829205723,15.83,151.49,151.43,1.2989]
[1726829205917,15.83,151.49,151.44,6.52352649]
[1726829206116,3.3004,151.48,151.45,3.3008]
[1726829207226,3.3005,151.47,151.44,3.3009]
[1726829207821,3.3005,151.47,151.43,1.2989]
[1726829208123,3.3005,151.47,151.44,6.52334582]
[1726829208324,3.3005,151.47,151.43,1.2989]
[1726829208520,3.3005,151.47,151.44,6.52392278]
[1726829208725,3.3005,151.47,151.44,3.301]
[1726829209129,3.3005,151.47,151.45,3.3008]
[1726829209330,3.3003,151.48,151.45,3.3008]
[1726829209524,15.83,151.49,151.45,3.3008]
[1726829209722,3.3005,151.47,151.44,3.301]
[1726829213520,10.14,151.46,151.43,3.3012]
[1726829213726,10.14,151.46,151.44,6.52531417]
[1726829214026,13.4408,151.46,151.43,3.3012]
[1726829214230,13.4408,151.46,151.44,6.52555673]
[1726829214527,13.4408,151.46,151.43,3.3012]
[1726829214721,13.4408,151.46,151.44,6.52572788]
[1726829214929,13.4408,151.46,151.43,3.3012]
[1726829215126,13.4408,151.46,151.44,6.5257677]
[1726829215433,13.4408,151.46,151.43,3.3012]
[1726829215627,13.4408,151.46,151.44,6.52592352]
[1726829215828,13.4408,151.46,151.43,3.3012]
[1726829216027,13.4408,151.46,151.44,6.52592352]
[1726829216230,13.4408,151.46,151.43,3.3012]
[1726829216526,13.4408,151.46,151.44,6.52606012]
[1726829216724,13.4408,151.46,151.43,3.3012]
[1726829216929,13.4408,151.46,151.44,6.52579803]
[1726829217126,13.4408,151.46,151.43,3.3012]
[1726829217331,13.4408,151.46,151.44,6.52596789]
[1726829217631,13.4408,151.46,151.43,3.3012]
[1726829217824,13.4408,151.46,151.44,6.52572568]
[1726829218027,13.4408,151.46,151.43,3.3012]
[1726829218226,13.4408,151.46,151.44,6.5257258]
[1726829218422,10.14,151.45,151.39,1.267]
[1726829218633,10.14,151.44,151.4,16.97332487]
[1726829218831,10.14,151.44,151.41,6.52820187]
[1726829219127,13.4412,151.44,151.42,6.52820187]
[1726829219327,13.4412,151.44,151.41,3.3016]
[1726829220431,3.3013,151.43,151.4,3.3018]
[1726829220633,1.2667,151.49,151.41,6.31725441]
[1726829220834,10.14,151.41,151.36,142.22]
[1726829221130,10.14,151.39,151.37,6.31932687]
[1726829221332,10.14,151.38,151.36,132.08]
[1726829221532,10.14,151.38,151.37,6.31946709]
[1726829221732,10.14,151.38,151.36,132.08]
[1726829222129,10.14,151.39,151.36,132.08]
[1726829222532,10.14,151.39,151.37,9.62184531]
[1726829222731,10.14,151.39,151.38,6.31730582]
[1726829223632,10.14,151.39,151.37,3.3025]
[1726829224133,3.3017,151.42,151.36,10.14]
[1726829224435,10.14,151.42,151.38,10.14]
[1726829224636,10.14,151.4,151.37,3.3025]
[1726829224935,10.14,151.4,151.38,6.31794308]
[1726829225136,10.14,151.4,151.37,3.3025]
[1726829225331,10.14,151.4,151.36,10.14]
[1726829225332,10.14,151.4,151.38,3.3024]
[1726829225533,10.14,151.4,151.38,9.62090464]
[1726829225736,10.14,151.4,151.39,6.31850464]
[1726829226532,10.14,151.4,151.37,10.14]
[1726829226737,10.14,151.4,151.38,6.31843572]
[1726829226937,10.14,151.4,151.39,6.31843572]
[1726829227640,13.4416,151.42,151.39,6.31843572]
[1726829227839,13.4416,151.42,151.37,10.14]
[1726829228140,13.4416,151.42,151.39,3.3021]
[1726829228336,13.4413,151.43,151.38,10.14]
[1726829228841,13.4413,151.43,151.4,3.3018]
[1726829229136,13.4413,151.43,151.38,10.14]
[1726829229339,13.4413,151.43,151.39,9.62023115]
[1726829229534,13.4413,151.43,151.39,3.3021]
[1726829230442,13.4415,151.42,151.39,3.3021]
[1726829232038,3.3019,151.41,151.37,13.4424]
[1726829232244,7.8671,151.49,151.38,6.31832637]
[1726829232443,10.14,151.41,151.39,6.31832637]
[1726829232645,10.14,151.41,151.37,10.14]
[1726829232839,10.14,151.41,151.38,6.31747125]
[1726829233036,10.14,151.41,151.39,6.31747125]
[1726829233338,10.14,151.41,151.37,10.14]
[1726829233545,10.14,151.41,151.38,6.31697638]
[1726829233743,10.14,151.41,151.39,6.31697638]
[1726829233947,10.14,151.41,151.39,3.3021]
[1726829234244,10.14,151.41,151.36,10.14]
[1726829234440,13.4419,151.41,151.38,3.3023]
[1726829234641,13.4419,151.41,151.39,6.31658651]
[1726829234841,13.4419,151.41,151.38,3.3023]
[1726829235347,13.4419,151.41,151.39,6.31665388]
[1726829235549,13.4419,151.41,151.38,3.3023]
[1726829235750,13.4419,151.41,151.39,6.31748136]
[1726829236050,13.4419,151.41,151.38,3.3023]
[1726829236051,13.4421,151.4,151.36,3.3027]
[1726829236249,13.4421,151.4,151.37,16.4254767]
[1726829236447,3.3022,151.39,151.38,6.31749104]
[1726829236752,10.14,151.39,151.36,10.11211391]
[1726829236947,10.14,151.39,151.37,6.32036505]
[1726829237142,3.3025,151.38,151.35,3.3029]
[1726829237447,3.3025,151.38,151.36,6.3197357]
[1726829237647,3.3025,151.38,151.37,6.3197357]
[1726829239255,3.3025,151.38,151.35,3.3029]
[1726829239452,3.3025,151.38,151.36,6.32103019]
[1726829239650,3.3025,151.38,151.37,6.32103019]
[1726829240157,13.4423,151.39,151.37,6.32103019]
[1726829240356,13.4423,151.39,151.36,3.3028]
[1726829240558,13.4423,151.39,151.37,6.32191134]
[1726829240759,13.4423,151.39,151.36,3.3028]
[1726829241060,13.4423,151.39,151.37,6.32309843]
[1726829241257,3.3025,151.38,151.33,10.14]
[1726829241559,3.3025,151.38,151.35,3.303]
[1726829241751,10.14,151.39,151.33,10.14]
[1726829241946,13.4423,151.39,151.36,3.3028]
[1726829242149,13.4423,151.39,151.37,6.32248845]
[1726829242352,13.4423,151.39,151.36,3.3028]
[1726829242552,1.2615,151.43,151.34,10.11657377]
[1726829242760,10.14,151.36,151.35,6.32242669]
[1726829243060,3.3032,151.35,151.3,1.3313]
[1726829243256,10.14,151.34,151.31,16.44677097]
[1726829243463,10.14,151.34,151.32,6.32568114]
[1726829243752,13.4432,151.35,151.32,3.3037]
[1726829243951,11.20235241,151.43,151.32,10.14]
[1726829243952,10.14,151.36,151.32,10.14]
[1726829244152,13.4424,151.39,151.36,3.3028]
[1726829244358,10.14,151.42,151.37,10.14]
[1726829244855,10.14,151.42,151.39,3.302]
[1726829245060,10.14,151.42,151.36,10.14]
[1726829245449,13.4416,151.42,151.38,3.3022]
[1726829245856,13.4416,151.42,151.38,10.14]
[1726829246059,10.14,151.42,151.38,13.47421127]
[1726829248167,1.2615,151.43,151.4,10.14]
[1726829248657,1.2615,151.43,151.38,3.33421127]
[1726829248658,10.14,151.43,151.39,10.14]
[1726829248860,10.14,151.4,151.36,1.3883]
[1726829249058,10.14,151.4,151.35,10.14]
[1726829249254,1.2891,151.44,151.36,6.31776505]
[1726829249456,10.14,151.41,151.36,10.14]
[1726829250359,10.14,151.41,151.33,10.10808098]
[1726829250563,10.14,151.4,151.36,10.14]
[1726829251155,10.14,151.4,151.37,3.3025]
[1726829251764,10.14,151.39,151.36,3.3027]
[1726829252157,1.363,151.43,151.35,3.303]
[1726829252355,1.363,151.43,151.37,10.14]
[1726829252559,10.14,151.4,151.35,10.14]
[1726829252760,10.14,151.4,151.37,3.3025]
[1726829252962,3.3019,151.41,151.37,3.3025]
[1726829253162,10.14,151.4,151.37,3.3025]
[1726829254264,10.14,151.4,151.38,3.3024]
[1726829254458,10.14,151.39,151.38,3.3024]
[1726829254861,10.14,151.39,151.23,578.6113]
[1726829255061,10.14,151.32,151.26,11.4534]
[1726829255258,10.14,151.31,151.27,16.42330778]
[1726829255462,1.3013,151.38,151.28,16.45665684]
[1726829255661,10.14,151.35,151.3,10.14]
[1726829256066,13.4431,151.35,151.31,3.3038]
[1726829257071,10.14,151.32,151.27,11.4534]
[1726829257365,10.14,151.32,151.28,6.31736146]
[1726829257556,13.4437,151.32,151.27,11.4534]
[1726829257962,3.3037,151.32,151.28,6.31834701]
[1726829258165,3.3037,151.32,151.28,3.3044]
[1726829260168,19.1636,151.33,151.29,3.3043]
[1726829261069,15.86,151.33,151.27,1.3134]
[1726829261667,3.3039,151.32,151.28,3.3045]
[1726829262368,3.3039,151.32,151.29,3.3044]
[1726829265772,3.3036,151.33,151.29,3.3044]
[1726829266271,3.3034,151.34,151.27,1.3134]
[1726829266778,3.3034,151.34,151.3,3.304]
[1726829267375,3.3035,151.33,151.3,3.304]
[1726829270577,3.3034,151.34,151.3,3.304]
[1726829272276,3.3034,151.34,151.31,3.3039]
[1726829272472,15.86,151.35,151.27,1.3134]
[1726829272777,15.86,151.35,151.3,3.304]
[1726829272977,15.86,151.35,151.31,3.30413808]
[1726829273177,3.3034,151.34,151.27,1.3134]
[1726829273969,3.3035,151.33,151.3,3.304]
[1726829274769,3.3035,151.33,151.31,3.32396688]
[1726829276577,15.86,151.35,151.27,1.3134]
[1726829276578,3.3037,151.32,151.29,3.3043]
[1726829277584,15.86,151.35,151.29,3.3043]
[1726829277585,3.3036,151.33,151.29,3.3043]
[1726829279877,10.15,151.32,151.29,3.3043]
[1726829280074,13.4538,151.32,151.29,3.3043]
[1726829281075,13.4538,151.32,151.27,11.4634]
[1726829281076,10.15,151.3,151.24,134.0373]
[1726829281269,10.15,151.3,151.25,16.46485851]
[1726829281471,10.15,151.3,151.25,10.15]
[1726829281783,13.4542,151.3,151.27,3.3048]
[1726829282577,10.15,151.28,151.26,3.305]
[1726829284473,10.15,151.31,151.26,10.15]
[1726829284878,10.15,151.31,151.28,3.3044]
[1726829285283,10.15,151.33,151.28,10.15]
[1726829285484,13.4536,151.33,151.28,10.15]
[1726829286684,13.4538,151.32,151.29,3.3042]
[1726829288190,10.15,151.3,151.24,133.4966]
[1726829288384,10.15,151.28,151.24,143.6466]
[1726829288585,10.15,151.28,151.24,142.33]
[1726829288780,10.15,151.28,151.25,6.32064326]
[1726829288989,10.15,151.28,151.26,3.305]
[1726829289385,10.15,151.27,151.24,132.18]
[1726829289691,10.15,151.27,151.25,3.3051]
[1726829291490,13.4543,151.3,151.24,10.15]
[1726829291987,10.15,151.3,151.26,10.15]
[1726829292191,10.15,151.33,151.28,10.15]
[1726829292386,10.15,151.33,151.21,7.9951]
[1726829292387,10.15,151.33,151.29,10.15]
[1726829292686,10.15,151.33,151.29,13.51727334]
[1726829292994,10.15,151.33,151.3,3.304]
[1726829293390,3.3034,151.34,151.3,3.304]
[1726829293691,10.15,151.33,151.3,3.304]
[1726829294186,13.4532,151.35,151.31,3.3038]
[1726829294593,13.4531,151.35,151.31,3.3038]
[1726829294793,10.15,151.33,151.31,3.3038]
[1726829294991,10.15,151.32,151.29,3.32892246]
[1726829295287,10.15,151.32,151.27,10.15]
[1726829295494,10.15,151.32,151.28,3.36725975]
[1726829295988,10.15,151.32,151.3,3.3041]
[1726829296193,1.3723,151.36,151.29,10.15]
[1726829296389,10.15,151.35,151.29,10.15]
[1726829296591,13.4531,151.35,151.29,10.15]
[1726829296795,10.15,151.34,151.3,3.35569295]
[1726829297193,10.15,151.33,151.3,3.34445663]
[1726829297393,10.15,151.34,151.28,10.15]
[1726829297701,13.4533,151.34,151.28,10.15]
[1726829297890,13.4533,151.34,151.28,13.52155598]
[1726829298795,13.4533,151.34,151.3,3.3039]
[1726829299701,3.3032,151.35,151.29,10.15]
[1726829299897,13.4532,151.35,151.29,10.15]
[1726829300393,13.4532,151.35,151.32,3.3036]
[1726829301394,10.15,151.34,151.32,3.3036]
[1726829301595,10.15,151.34,151.31,3.3039]
[1726829302899,3.3035,151.33,151.31,3.3039]
[1726829303303,3.3035,151.33,151.3,3.3039]
[1726829303505,13.4534,151.34,151.28,13.52155598]
[1726829304398,13.4534,151.34,151.3,3.304]
[1726829307805,13.4536,151.33,151.3,3.304]
[1726829310305,10.15,151.31,151.3,3.304]
[1726829311512,10.15,151.31,151.29,3.3043]
[1726829312309,10.15,151.31,151.29,6.68036822]
[1726829312810,10.15,151.31,151.3,3.3041]
[1726829313708,3.3034,151.34,151.3,3.3041]
[1726829313911,13.4534,151.34,151.31,3.3039]
[1726829314310,3.3034,151.34,151.31,3.3039]
[1726829314511,13.4534,151.34,151.31,3.3039]